Cogmind - Beta 12 @@@ ROGUE MODE // 2023.12.24 @ 23:53:10 Player: Rohain Result: Core destroyed Performance ------------- Evolutions (6) 3000 Regions Visited (13) 2600 Robots Destroyed (203) 1015 Value Destroyed (8727) 8727 Prototype IDs (15) 300 Alien Tech Used (0) 0 Bonus (2690) 2690 TOTAL SCORE: 18332 Bonus ------- High Alert Combat Kills 2097 Follower Combat Kills 534 Entered Garrisons 200 Entered DSFs 500 Friendly Fire -641 Cogmind --------- Core Integrity 0/1150 Matter 290/300 Energy 258/310 System Corruption 0% Temperature Critical (793) Movement Core (550) Ox10 Location -4/DSF Parts ------- > --- POWER (2) -------- Reinforced Fission Core > --- PROPULSION (4) --- Improved Heavy Siege Treads Improved Heavy Siege Treads > --- UTILITY (9) ------ Improved Targeting Computer Core Analyzer > --- WEAPON (4) ------- Heavy Plasma Cannon > --- INVENTORY (5) ---- Improved Heavy Siege Treads Encrypted Comm Array Improved Arc Projector Improved Arc Projector Peak State ------------ > --- POWER ------------ Light Angular Momentum Engine Antimatter Reactor > --- PROPULSION ------- Carbon-fiber Leg Improved Titanium Leg Flexi-carbon Leg Flexi-carbon Leg > --- UTILITY ---------- Advanced Heat Sink Advanced Heat Sink Large Storage Unit Improved Targeting Computer Improved Particle Charger Improved Weapon Cycler Layered Medium Armor Plating > --- WEAPON ----------- Tesla Rifle Plasma Rifle Plasma Rifle Variable Charge Gun > --- INVENTORY -------- Light Angular Momentum Engine Light Angular Momentum Engine Light Angular Momentum Engine Carbon-fiber Leg Flexi-carbon Leg Flexi-carbon Leg Flexi-carbon Leg Improved Heat Sink Encrypted Comm Array Medium Insulated Plating Heavy Laser Heavy Laser Heavy Laser Heavy Plasma Cannon Cooled Plasma Cannon [Rating: 86] Favorites ----------- Power Light Angular Momentum Engine Engine Light Angular Momentum Engine Power Core Neutrino Core Reactor Antimatter Reactor Propulsion Aluminum Leg Treads Improved Heavy Siege Treads Leg Aluminum Leg Wheel Compact Wheel Utility Improved Targeting Computer Device Advanced Heat Sink Storage Large Storage Unit Processor Improved Targeting Computer Protection Layered Medium Armor Plating Weapon Plasma Rifle Energy Gun Plasma Rifle Energy Cannon Cooled Particle Cannon Ballistic Gun Light Assault Rifle Ballistic Cannon Light Cannon Launcher Rocket Launcher Build | -11 -10 -9 -9 -8 -8 -7 -6 -6 -5 -5 -5 -4 -4 ------- Run | Jun Mat Mat Sto Mat Gar Fac Fac Low Fac Upp Upp Fac DSF Slots Evolved 12 | . . 2 . 2 . 2 2 . 2 . . 2 . Power 1 | . . . . . . . . . 1 . . . . Propulsion 2 | . . 2 . . . . . . . . . . . Utility 7 | . . . . 2 . 1 1 . 1 . . 2 . Weapon 2 | . . . . . . 1 1 . . . . . . Parts Attached 274 | 4 17 18 28 11 42 33 43 . 40 14 4 4 16 Power 36 | 1 4 2 5 . 3 2 5 . 7 2 1 . 4 Engine 26 | 1 3 2 5 . 2 1 5 . 4 2 1 . . Core 8 | . 1 . . . 1 1 . . 2 . . . 3 Reactor 2 | . . . . . . . . . 1 . . . 1 Propulsion 89 | 2 5 7 14 3 18 13 8 . 5 6 1 . 7 Treads 2 | . . . . . . . . . . . . . 2 Leg 82 | 2 5 7 14 2 18 13 8 . 5 6 1 . 1 Wheel 5 | . . . . 1 . . . . . . . . 4 Hover . | . . . . . . . . . . . . . . Flight . | . . . . . . . . . . . . . . Utility 77 | 1 2 2 1 4 11 9 17 . 21 4 1 4 . Device 52 | . 2 . . 4 9 5 12 . 15 2 . 3 . Storage 4 | 1 . 1 1 . . 1 . . . . . . . Processor 6 | . . 1 . . . 1 . . 2 . 1 1 . Hackware . | . . . . . . . . . . . . . . Protection 15 | . . . . . 2 2 5 . 4 2 . . . Artifact . | . . . . . . . . . . . . . . Weapon 72 | . 6 7 8 4 10 9 13 . 7 2 1 . 5 Energy Gun 54 | . 4 5 7 3 8 3 10 . 7 2 1 . 4 Energy Cannon 7 | . . . . . . 3 3 . . . . . 1 Ballistic Gun 3 | . 2 . . 1 . . . . . . . . . Ballistic Cannon 2 | . . 2 . . . . . . . . . . . Launcher 6 | . . . 1 . 2 3 . . . . . . . Special Weapon . | . . . . . . . . . . . . . . Impact Weapon . | . . . . . . . . . . . . . . Slashing Weapon . | . . . . . . . . . . . . . . Piercing Weapon . | . . . . . . . . . . . . . . Special Melee Weapon . | . . . . . . . . . . . . . . Unidentified Prototypes 12 | . . . 4 1 . 3 1 . 3 . . . . Corrupted Parts 1 | . . . . . . . . . . 1 . . . System Corruption 5 | . . . . . . . . . . 5 . . . Parts Lost 101 | . . 4 8 3 12 9 19 1 6 10 9 . 20 Power 16 | . . 2 . . 1 1 3 . 1 2 2 . 4 Propulsion 35 | . . 2 6 2 4 3 3 1 2 4 2 . 6 Utility 25 | . . . . . 4 2 8 . 1 2 3 . 5 Weapon 25 | . . . 2 1 3 3 5 . 2 2 2 . 5 Highest Loss Streak 20 | . . 2 4 2 5 2 9 1 1 6 7 . 20 To Critical Strikes . | . . . . . . . . . . . . . . Average Slot Usage (%) 92 | . 93 99 91 79 97 94 96 95 96 90 86 50 46 Engine 6 | . 12 7 11 9 8 5 3 6 5 2 4 5 1 Core 1 | . 1 3 . . . 1 2 . 1 5 4 . 3 Leg 27 | . 28 43 35 17 33 29 25 24 21 21 21 10 5 Device 14 | . 11 . . 16 15 14 17 24 22 22 21 17 10 Storage 7 | . 14 11 11 9 9 7 6 6 5 5 . . . Processor 7 | . . 10 11 9 9 7 6 6 6 5 9 11 12 Protection 3 | . . . . . 2 5 8 . 4 4 4 . . Energy Gun 16 | . 22 8 21 18 17 13 12 26 20 17 15 5 7 Energy Cannon 1 | . . . . . . 3 10 . . . . . 1 Naked Turns . | . . . . . . . . . . . . . . Heaviest Build 77 | 10 13 23 37 37 46 52 76 49 77 75 67 17 43 Greatest Support 150 | 20 20 49 53 30 56 83 83 75 75 75 75 40 150 Greatest Overweight (x) 10 | . . . 3 3 2 . . . 1 1 . . 10 Average Overweight (x) . | . . . . 1 . . . . . . . . . Largest Inventory Capacity 15 | 8 8 10 15 15 15 15 15 15 15 15 15 5 5 Average Capacity 13 | 7 8 9 12 15 15 15 15 15 15 15 6 5 5 Most Carried 15 | 4 8 8 14 13 15 15 15 14 15 15 6 3 5 Average Carried 11 | 2 6 7 10 11 14 12 13 13 14 10 4 2 2 Final Capacity 15 | 8 8 10 15 15 15 15 15 15 15 15 5 5 5 Final Carried 15 | 4 8 7 12 13 14 15 13 14 15 6 4 3 5 Class Distribution -------------------- 45% | Scavenger-Mutant 28% | Scavenger-Gunner 22% | Mutant Dominant Class ---------------- Mutant | -10/Materials Mutant | -9/Materials Scavenger-Mutant | -9/Storage Scavenger-Mutant | -8/Materials Scavenger-Mutant | -8/Garrison Scavenger-Mutant | -7/Factory Scavenger-Mutant | -6/Factory Scavenger-Gunner | -6/Lower Caves Scavenger-Gunner | -5/Factory Scavenger-Gunner | -5/Upper Caves Scavenger-Gunner | -5/Upper Caves Scavenger-Mutant | -4/Factory Mutant | -4/DSF Resources | -11 -10 -9 -9 -8 -8 -7 -6 -6 -5 -5 -5 -4 -4 ----------- Run | Jun Mat Mat Sto Mat Gar Fac Fac Low Fac Upp Upp Fac DSF Matter Collected 2982 | 240 190 344 325 105 391 328 391 . 412 75 64 . 117 Remotely . | . . . . . . . . . . . . . . Salvage Created 9289 | . 313 432 1248 760 1195 980 1907 . 1033 557 548 . 316 Parts 389 | . 28 36 73 30 56 42 67 . 26 12 6 . 13 Haulers Intercepted 10 | . . 2 2 3 . 1 . . 2 . . . . Recyclers Shooed 4 | . . . 1 1 . 2 . . . . . . . Parts Field Recycled . | . . . . . . . . . . . . . . Retrieved Matter . | . . . . . . . . . . . . . . Parts Self-Destructed 15 | . . . . . . . . . . 9 6 . . Prevented 1 | . . . . . . . . . . . 1 . . Kills | -11 -10 -9 -9 -8 -8 -7 -6 -6 -5 -5 -5 -4 -4 ------- Run | Jun Mat Mat Sto Mat Gar Fac Fac Low Fac Upp Upp Fac DSF Combat Hostiles Destroyed 172 | . 11 11 22 10 30 16 35 . 13 10 5 . 9 Guns 121 | . 11 2 19 8 30 11 14 . 11 7 2 . 6 Cannons 26 | . . 9 . . . 1 13 . . . . . 3 AOE 10 | . . . 3 . . 3 4 . . . . . . Classes Destroyed 16 | . 3 4 4 1 2 . . . . . 1 . 1 Worker 2 | . 1 . 1 . . . . . . . . . . Hauler 10 | . . 2 2 3 . 1 . . 2 . . . . Recycler 10 | . . 1 2 3 . 4 . . . . . . . Mechanic 1 | . . . 1 . . . . . . . . . . Operator 1 | . . 1 . . . . . . . . . . . Watcher 4 | . . . 2 . . . 1 . 1 . . . . Swarmer 46 | . 6 6 2 4 7 4 6 . 3 . 1 . 7 Cutter 2 | . . . . . 2 . . . . . . . . Grunt 64 | . 5 . 9 4 9 3 18 . 4 9 3 . . Brawler 8 | . . . 2 . 1 . 3 . 1 . 1 . . Duelist 11 | . . . 2 . 2 2 4 . . 1 . . . Sentry 24 | . . 5 7 1 4 3 2 . 2 . . . . Hunter 8 | . . . . 1 3 1 . . 2 . . . 1 Programmer 10 | . . . . . 4 3 2 . 1 . . . . Heavy 1 | . . . . . . . . . . . . . 1 Packrat 2 | . . . . . . . . . . . 2 . . Samaritan 2 | . . . . . . . . . . . 2 . . Wizard 1 | . . . . . . . . . 1 . . . . Best Kill Streak 7 | . 7 3 4 4 5 3 7 . 3 4 4 . 7 Combat Bots Only 7 | . 4 3 3 3 5 3 6 . 3 4 4 . 7 Max Kills in Single Turn 3 | . 1 1 3 1 2 2 3 . 2 2 1 . 1 Gunslinging 1 | . . . . . . . . . 1 1 . . . Exploded 3 | . . . 3 . . 2 2 . . . . . . Melee . | . . . . . . . . . . . . . . Uniques/NPCs Destroyed . | . . . . . . . . . . . . . . Combat | -11 -10 -9 -9 -8 -8 -7 -6 -6 -5 -5 -5 -4 -4 -------- Run | Jun Mat Mat Sto Mat Gar Fac Fac Low Fac Upp Upp Fac DSF Damage Taken 16437 | . 595 708 1226 417 2093 1263 4398 85 1164 1036 691 . 2761 Core 2771 | . 65 132 187 83 148 81 632 22 88 101 18 . 1214 Absorbed by Shields . | . . . . . . . . . . . . . . Reduced by Siege Mode 143 | . . . . . . . . . . . . . 143 Core Remaining (%) 63 | 100 74 . 20 . 58 88 . 23 . . 79 . . Volleys Fired 626 | . 44 53 93 46 105 57 96 1 48 27 26 . 30 Largest 4 | . 2 2 2 2 2 3 4 4 4 4 3 . 2 Hottest 298 | . 80 106 131 125 150 192 288 288 294 298 229 . 170 Shots Fired 1337 | . 88 81 179 92 207 100 223 5 159 86 78 . 39 Gun 1181 | . 88 28 177 92 206 93 138 5 159 86 78 . 31 Cannon 150 | . . 53 . . . 4 85 . . . . . 8 Launcher 6 | . . . 2 . 1 3 . . . . . . . Special . | . . . . . . . . . . . . . . Kinetic 73 | . 20 53 . . . . . . . . . . . Thermal 1258 | . 68 28 177 92 206 97 223 5 159 86 78 . 39 Explosive 6 | . . . 2 . 1 3 . . . . . . . Electromagnetic . | . . . . . . . . . . . . . . Robot Hit Streak 25 | . 10 11 11 10 13 21 25 6 12 16 21 . 12 Robot Miss Streak 5 | . 5 5 4 4 4 4 4 . 4 2 2 . 2 Penetration Max . | . . . . . . . . . . . . . . Secondary Targets 18 | . 2 . 1 . 5 . 3 . 3 3 1 . . Max Gunslinging Chain 2 | . 1 . 1 . 1 . 1 . 1 2 1 . . Shots Hit Robots 919 | . 51 57 109 63 121 82 176 5 100 69 55 . 31 Core Hits 389 | . 21 19 49 21 53 51 80 . 33 25 18 . 19 Critical Kills . | . . . . . . . . . . . . . . Critical Parts Destroyed . | . . . . . . . . . . . . . . Critical Strikes 66 | . . 3 9 8 17 4 2 . 6 5 9 . 3 Burn 65 | . . 2 9 8 17 4 2 . 6 5 9 . 3 Blast 1 | . . 1 . . . . . . . . . . . Melee Attacks . | . . . . . . . . . . . . . . Impact . | . . . . . . . . . . . . . . Slashing . | . . . . . . . . . . . . . . Piercing . | . . . . . . . . . . . . . . Sneak Attacks . | . . . . . . . . . . . . . . Combat Hostiles . | . . . . . . . . . . . . . . Follow-up Attacks . | . . . . . . . . . . . . . . Damage Inflicted 20529 | . 514 966 2478 1111 2582 2064 5071 108 2485 1404 1056 . 690 Guns 15775 | . 514 296 1893 1111 2424 1730 2322 108 2485 1404 1056 . 432 Cannons 3269 | . . 670 . . . 121 2220 . . . . . 258 Explosions 1483 | . . . 585 . 158 213 527 . . . . . . Melee . | . . . . . . . . . . . . . . Ramming 2 | . . . . . . . 2 . . . . . . Kinetic 788 | . 118 670 . . . . . . . . . . . Thermal 18256 | . 396 296 1893 1111 2424 1851 4542 108 2485 1404 1056 . 690 Explosive 1483 | . . . 585 . 158 213 527 . . . . . . Electromagnetic . | . . . . . . . . . . . . . . Impact . | . . . . . . . . . . . . . . Slashing . | . . . . . . . . . . . . . . Piercing . | . . . . . . . . . . . . . . Highest Corruption 7 | . . . . . 6 4 5 5 2 7 7 . . Average Corruption 3 | . . . . . 4 2 4 5 2 2 7 . . Corruption Purged . | . . . . . . . . . . . . . . Corruption Blocked 16 | . . . . . . . . . 16 . . . . Effects 81 | . . . . . 8 9 30 3 17 3 11 . . Message Errors 18 | . . . . . 3 1 5 . 4 2 3 . . Matter Fused 13 | . . . . . . 1 5 1 4 . 2 . . Heat Flow Errors 5 | . . . . . . 1 3 . . . 1 . . Energy Discharges 11 | . . . . . 1 2 5 . 2 . 1 . . Parts Rejected 1 | . . . . . . . 1 . . . . . . Parts Fused 1 | . . . . . 1 . . . . . . . . Data Loss (minor) 6 | . . . . . . 2 2 . 1 . 1 . . Data Loss (major) 11 | . . . . . 1 1 3 . 3 1 2 . . Misfires 5 | . . . . . . 1 2 2 . . . . . Alerts 5 | . . . . . . . 1 . 3 . 1 . . Weapon Failures 5 | . . . . . 2 . 3 . . . . . . Overload Shots 9 | . . . . . . . 9 . . . . . . Overflow Damage 126 | . . . . . . 44 74 . . . . . 8 Projectiles 122 | . . . . . . 40 74 . . . . . 8 Explosions 4 | . . . . . . 4 . . . . . . . Melee . | . . . . . . . . . . . . . . Knockbacks 4 | . . 4 . . . . . . . . . . . Impact . | . . . . . . . . . . . . . . Kinetic 4 | . . 4 . . . . . . . . . . . Secondary . | . . . . . . . . . . . . . . Self-Inflicted Damage 405 | . . . 28 . . 30 347 . . . . . . Shots 8 | . . . 1 . . 1 6 . . . . . . Rammed . | . . . . . . . . . . . . . . Targets Rammed 1 | . . . . . . . 1 . . . . . . Kicked 1 | . . . . . . . 1 . . . . . . Crushed . | . . . . . . . . . . . . . . Highest Temperature 793 | . 28 201 444 16 224 102 251 . 369 329 193 . 793 Average Temperature 97 | . 11 37 109 10 55 27 65 . 127 119 64 . 294 Received Heat Transfer 3814 | . 207 144 498 126 477 204 1282 12 210 399 255 . . Effects 31 | . . 1 7 . . . . . 3 3 . . 17 Shutdowns 5 | . . . 1 . . . . . 2 . . . 2 Energy Bleed 9 | . . . 5 . . . . . 1 . . . 3 Interference 8 | . . 1 1 . . . . . . 3 . . 3 Short Circuit 2 | . . . . . . . . . . . . . 2 Damage (minor) 2 | . . . . . . . . . . . . . 2 Damage (major) 3 | . . . . . . . . . . . . . 3 Damage (core) 2 | . . . . . . . . . . . . . 2 Siege Activations 1 | . . . . . . . . . . . . . 1 Total Turns 30 | . . . . . . . . . . . . . 30 Longest Duration 30 | . . . . . . . . . . . . . 30 Robots Corrupted . | . . . . . . . . . . . . . . Combat Hostiles . | . . . . . . . . . . . . . . Parts Fried . | . . . . . . . . . . . . . . Impact Corruptions . | . . . . . . . . . . . . . . Robots Melted 16 | . . . . 2 . 1 4 . 2 3 4 . . Combat Hostiles 15 | . . . . 2 . 1 4 . 2 3 3 . . Parts Melted 106 | . 2 . 9 6 14 10 19 . 19 16 9 . 2 Heat Transferred 41264 | . 925 925 4621 2960 5809 4058 7594 211 5417 3638 3206 . 1900 Parts Sabotaged 5 | . . . . . . . 2 . . . 3 . . Parts Stolen . | . . . . . . . . . . . . . . Parts Stripped . | . . . . . . . . . . . . . . Power Chain Reactions . | . . . . . . . . . . . . . . Missiles Intercepted . | . . . . . . . . . . . . . . Alert | -11 -10 -9 -9 -8 -8 -7 -6 -6 -5 -5 -5 -4 -4 ------- Run | Jun Mat Mat Sto Mat Gar Fac Fac Low Fac Upp Upp Fac DSF Peak Influence 1676 | . 230 283 642 528 1676 1066 1232 . 548 . . 154 182 Initial 879 | . . 76 96 245 240 879 466 . 457 . . 154 107 Average 558 | . 115 200 478 390 837 930 802 . 358 . . 154 115 Maximum Alert Level 5 | . 1 1 2 2 5 3 4 . 2 . . . . Low Security (%) 14 | 100 97 34 8 . . . . . 3 . . 100 100 Level 1 22 | . 2 65 8 56 12 . . . 57 . . . . Level 2 32 | . . . 83 43 31 . 45 . 39 . . . . Level 3 22 | . . . . . 25 100 35 . . . . . . Level 4 8 | . . . . . 30 . 18 . . . . . . Level 5 . | . . . . . 1 . . . . . . . . High Security . | . . . . . . . . . . . . . . Max Security . | . . . . . . . . . . . . . . Sterilizations 1 | . . . . . . . . . . . . . 1 Squads Dispatched 36 | . 3 1 4 1 . 7 9 . 8 . 1 . 2 Investigation 4 | . 1 . . . . 1 . . 2 . . . . Extermination 7 | . . . . . . 3 1 . 3 . . . . Reinforcement 13 | . 2 1 1 1 . 2 2 . 2 . . . 2 Assault 10 | . . . 3 . . 1 4 . 1 . 1 . . Garrison 2 | . . . . . . . 2 . . . . . . Intercept . | . . . . . . . . . . . . . . Searches Triggered . | . . . . . . . . . . . . . . Construction Impeded 1 | . . . . . . . 1 . . . . . . Haulers Reinforced 4 | . . . . . . 1 1 . 2 . . . . Active Scanning Responses . | . . . . . . . . . . . . . . Cargo Convoy Interrupts . | . . . . . . . . . . . . . . Stealth | -11 -10 -9 -9 -8 -8 -7 -6 -6 -5 -5 -5 -4 -4 --------- Run | Jun Mat Mat Sto Mat Gar Fac Fac Low Fac Upp Upp Fac DSF Distress Signals 13 | . 1 1 4 1 . . 2 . 4 . . . . Communications Jammed . | . . . . . . . . . . . . . . Distress Signals . | . . . . . . . . . . . . . . Times Spotted 325 | . 23 16 48 12 48 25 63 1 39 15 18 . 17 Peak Tracking Total 11 | . 5 4 9 5 8 4 9 1 8 4 11 . 9 Tactical Retreats 28 | . 3 . 3 1 3 3 4 . 4 2 1 . 4 Traps | -11 -10 -9 -9 -8 -8 -7 -6 -6 -5 -5 -5 -4 -4 ------- Run | Jun Mat Mat Sto Mat Gar Fac Fac Low Fac Upp Upp Fac DSF Traps Triggered 14 | . 1 . 2 . 5 2 2 . 1 . . . 1 Indirectly . | . . . . . . . . . . . . . . Trap Hack Attempts . | . . . . . . . . . . . . . . Triggered . | . . . . . . . . . . . . . . Disarmed . | . . . . . . . . . . . . . . Reprogrammed . | . . . . . . . . . . . . . . Reused . | . . . . . . . . . . . . . . Traps Extracted . | . . . . . . . . . . . . . . Installed . | . . . . . . . . . . . . . . Triggered 4 | . . . . . . . . 1 1 . 2 . . Machines | -11 -10 -9 -9 -8 -8 -7 -6 -6 -5 -5 -5 -4 -4 ---------- Run | Jun Mat Mat Sto Mat Gar Fac Fac Low Fac Upp Upp Fac DSF Machines Disabled 22 | . . . 3 2 8 . 9 . . . . . . Max in Single Turn 4 | . . . 1 1 2 . 4 . . . . . . Garrison Access 1 | . . . . . . . 1 . . . . . . Garrison Relay 6 | . . . . . 6 . . . . . . . . Phase Generator 1 | . . . . . 1 . . . . . . . . Machines Repaired . | . . . . . . . . . . . . . . Machines Sabotaged . | . . . . . . . . . . . . . . Overloaded Fab Kills . | . . . . . . . . . . . . . . Hacking | -11 -10 -9 -9 -8 -8 -7 -6 -6 -5 -5 -5 -4 -4 --------- Run | Jun Mat Mat Sto Mat Gar Fac Fac Low Fac Upp Upp Fac DSF Machines Accessed 24 | . 2 3 5 1 3 5 2 . 2 . . 1 . Terminals 14 | . 2 3 3 . 3 . 1 . 1 . . 1 . Fabricators 4 | . . . . . . 4 . . . . . . . Repair Stations 1 | . . . . . . . . . 1 . . . . Recycling Units 3 | . . . 2 . . . 1 . . . . . . Scanalyzers . | . . . . . . . . . . . . . . Garrison Access 2 | . . . . 1 . 1 . . . . . . . Total Hacks 43 | . 4 9 10 1 4 6 4 . 4 . . 1 . Successful 17 | . . 5 6 1 . 2 . . 2 . . 1 . Failed 26 | . 4 4 4 . 4 4 4 . 2 . . . . Catastrophic 8 | . . 1 1 . 2 3 1 . . . . . . Database Lockouts . | . . . . . . . . . . . . . . Manual 26 | . 4 8 9 . 1 1 3 . . . . . . Terminals 27 | . 4 9 4 . 4 . 3 . 2 . . 1 . Fabricators 5 | . . . . . . 5 . . . . . . . Repair Stations 2 | . . . . . . . . . 2 . . . . Recycling Units 7 | . . . 6 . . . 1 . . . . . . Scanalyzers . | . . . . . . . . . . . . . . Garrison Access 2 | . . . . 1 . 1 . . . . . . . Terminal Hacks 6 | . . 3 1 . . . . . 1 . . 1 . Record 1 | . . . . . . . . . 1 . . . . Robot Analysis 1 | . . 1 . . . . . . . . . . . Prototype ID Bank 1 | . . 1 . . . . . . . . . . . Open Door 1 | . . . 1 . . . . . . . . . . Open DSF 1 | . . . . . . . . . . . . 1 . Alert Level 1 | . . 1 . . . . . . . . . . . Fabricator Hacks 2 | . . . . . . 2 . . . . . . . Network Status 1 | . . . . . . 1 . . . . . . . Build 1 | . . . . . . 1 . . . . . . . Repair Station Hacks 1 | . . . . . . . . . 1 . . . . Scan Component 1 | . . . . . . . . . 1 . . . . Recycling Unit Hacks 1 | . . . 1 . . . . . . . . . . Retrieve Components 1 | . . . 1 . . . . . . . . . . Scanalyzer . | . . . . . . . . . . . . . . Garrison Access Hacks 1 | . . . . 1 . . . . . . . . . Unlock Access 1 | . . . . 1 . . . . . . . . . Unauthorized Hacks 6 | . . 2 4 . . . . . . . . . . Terminals 4 | . . 2 2 . . . . . . . . . . Botnet 3 | . . 1 2 . . . . . . . . . . Operators 1 | . . 1 . . . . . . . . . . . Fabricators . | . . . . . . . . . . . . . . Repair Stations . | . . . . . . . . . . . . . . Recycling Units 2 | . . . 2 . . . . . . . . . . Reject 1 | . . . 1 . . . . . . . . . . Mask 1 | . . . 1 . . . . . . . . . . Scanalyzers . | . . . . . . . . . . . . . . Garrison Access . | . . . . . . . . . . . . . . Data Cores Recovered 1 | . . 1 . . . . . . . . . . . Used . | . . . . . . . . . . . . . . Hacking Detections 20 | . 2 3 4 . 3 4 2 . 1 . . 1 . Full Trace Events 1 | . . . . . . 1 . . . . . . . Feedback Events . | . . . . . . . . . . . . . . Feedback Blocked . | . . . . . . . . . . . . . . Robot Schematics Acquired . | . . . . . . . . . . . . . . Robots Built . | . . . . . . . . . . . . . . Authchips . | . . . . . . . . . . . . . . Time . | . . . . . . . . . . . . . . Total Robot Build Rating . | . . . . . . . . . . . . . . Part Schematics Acquired . | . . . . . . . . . . . . . . Parts Built 1 | . . . . . . 1 . . . . . . . Authchips . | . . . . . . . . . . . . . . Time 93 | . . . . . . 93 . . . . . . . Total Part Build Rating 7 | . . . . . . 7 . . . . . . . Parts Repaired . | . . . . . . . . . . . . . . Time . | . . . . . . . . . . . . . . Parts Recycled . | . . . . . . . . . . . . . . Recycled Matter . | . . . . . . . . . . . . . . Retrieved Matter . | . . . . . . . . . . . . . . Retrieved Components 10 | . . . 10 . . . . . . . . . . Parts Scanalyzed . | . . . . . . . . . . . . . . Part Schematics Acquired . | . . . . . . . . . . . . . . Parts Damaged . | . . . . . . . . . . . . . . Bothacking | -11 -10 -9 -9 -8 -8 -7 -6 -6 -5 -5 -5 -4 -4 ------------ Run | Jun Mat Mat Sto Mat Gar Fac Fac Low Fac Upp Upp Fac DSF Used RIF Installer . | . . . . . . . . . . . . . . Robots Hacked . | . . . . . . . . . . . . . . Non-combat . | . . . . . . . . . . . . . . Combat . | . . . . . . . . . . . . . . Robot Hacks Applied . | . . . . . . . . . . . . . . Relay Couplers Released 30 | . . . . . 25 . 2 . 3 . . . . Machine Destruction 27 | . . . . . 25 . 2 . . . . . . Programmers 3 | . . . . . . . . . 3 . . . . Fabnet Peak Effective % . | . . . . . . . . . . . . . . Robots Rewired 9 | . . . . . 9 . . . . . . . . Allies Hacked . | . . . . . . . . . . . . . . Hacks Repelled . | . . . . . . . . . . . . . . Allies | -11 -10 -9 -9 -8 -8 -7 -6 -6 -5 -5 -5 -4 -4 -------- Run | Jun Mat Mat Sto Mat Gar Fac Fac Low Fac Upp Upp Fac DSF Total Allies 15 | . . . 2 . 11 . . 2 . . . . . Largest Group 5 | . . . 2 . 5 . . 2 . . . . . Highest-Rated Group 250 | . . . 62 . 76 . . 250 . . . . . Highest-Rated Ally 165 | . . . 31 . 31 . . 165 . . . . . Warlord Squad Rendezvous 6 | . . . . . . . . . 6 . . . . Muscle 1 | . . . . . . . . . 1 . . . . Geek 1 | . . . . . . . . . 1 . . . . Ranger 2 | . . . . . . . . . 2 . . . . Chimera 2 | . . . . . . . . . 2 . . . . Total Orders . | . . . . . . . . . . . . . . Ally Attacks 94 | . . . 23 . 65 . . 6 . . . . . Total Damage 1517 | . . . 358 . 997 . . 162 . . . . . Kills 23 | . . . 8 . 15 . . . . . . . . Allies Corrupted . | . . . . . . . . . . . . . . Allies Melted . | . . . . . . . . . . . . . . Intel | -11 -10 -9 -9 -8 -8 -7 -6 -6 -5 -5 -5 -4 -4 ------- Run | Jun Mat Mat Sto Mat Gar Fac Fac Low Fac Upp Upp Fac DSF Robot Analysis Total 1 | . . 1 . . . . . . . . . . . Derelict Logs Recovered . | . . . . . . . . . . . . . . Drone Launches . | . . . . . . . . . . . . . . Drone Recoveries . | . . . . . . . . . . . . . . Exploration | -11 -10 -9 -9 -8 -8 -7 -6 -6 -5 -5 -5 -4 -4 ------------- Run | Jun Mat Mat Sto Mat Gar Fac Fac Low Fac Upp Upp Fac DSF Turns Passed 10887 | 58 499 793 1324 522 1821 1253 1334 90 1767 569 366 88 403 Spaces Moved 6136 | 43 271 496 644 179 1025 775 769 50 1126 299 231 69 159 Core 17 | 4 . . . . . . . . . . . . 13 Treads 9 | . . . . . . . . . . . . . 9 Legs 6037 | 39 271 496 644 164 977 775 769 50 1126 299 231 69 127 Wheels 73 | . . . . 15 48 . . . . . . . 10 Hover . | . . . . . . . . . . . . . . Flight . | . . . . . . . . . . . . . . Fastest Speed 50 | 50 120 120 120 130 120 112 115 122 122 120 120 120 100 Average Speed 131 | 113 120 120 147 187 127 116 118 122 135 147 120 120 175 Slowest Speed 550 | 120 120 120 330 330 190 120 123 123 193 190 120 120 550 Overloaded Moves . | . . . . . . . . . . . . . . Propulsion Burnouts . | . . . . . . . . . . . . . . Robots Hopped . | . . . . . . . . . . . . . . Cave-ins Triggered . | . . . . . . . . . . . . . . Exploration Rate (%) 37 | 3 57 51 63 16 83 22 19 9 29 44 25 2 95 Regions Visited 13 Branch Regions 4 Pre-discovered Areas 2 | . . . 1 . . . . 1 . . . . . Known Exits Taken 2 | . . . . 1 . . . . . . . 1 . Unknown Exits Taken 10 | 1 1 1 1 . . 1 1 1 1 1 1 . . Scrap Searched 1 | . . . . . . . . . . . 1 . . Spaces Dug 14 | . . . . . . 13 1 . . . . . . Terrain Destroyed 181 | . . . 17 . 70 18 70 . 4 2 . . . Melee . | . . . . . . . . . . . . . . Projectile 16 | . . . . . . . 10 . 4 2 . . . AOE 165 | . . . 17 . 70 18 60 . . . . . . Terrain Rammed . | . . . . . . . . . . . . . . Walls Destroyed . | . . . . . . . . . . . . . . Machines Disabled . | . . . . . . . . . . . . . . Actions | -11 -10 -9 -9 -8 -8 -7 -6 -6 -5 -5 -5 -4 -4 --------- Run | Jun Mat Mat Sto Mat Gar Fac Fac Low Fac Upp Upp Fac DSF Total 7833 | 50 367 612 840 271 1334 1029 1016 76 1291 374 261 73 239 Wait 471 | . 10 36 44 30 27 135 67 25 38 32 . . 27 Move 6124 | 42 270 495 643 179 1024 774 768 49 1125 298 230 68 159 Hop . | . . . . . . . . . . . . . . Pick Up 94 | 4 8 3 12 3 11 11 19 1 14 1 1 . 6 Fast Attach 77 | 4 3 4 9 4 3 7 14 . 13 2 1 2 11 Attach 93 | . 3 5 4 4 15 13 17 . 13 9 3 2 5 Detach 16 | . 3 . . . 1 3 2 . 6 . . 1 . Swap 104 | . 11 9 15 3 24 13 12 . 14 3 . . . Drop 116 | . 15 7 20 2 16 16 20 . 17 2 . . 1 Fire 626 | . 44 53 93 46 105 57 96 1 48 27 26 . 30 Melee . | . . . . . . . . . . . . . . Ram . | . . . . . . . . . . . . . . Kick 1 | . . . . . . . 1 . . . . . . Crush . | . . . . . . . . . . . . . . Escape Stasis 20 | . . . . . 20 . . . . . . . . Rewire 91 | . . . . . 88 . . . 3 . . . . Trap . | . . . . . . . . . . . . . . Miscellaneous . | . . . . . . . . . . . . . . Route ------- -11/Junkyard -10/Materials (discovered 2 exits: *Mat x2) -9/Materials (discovered 2 exits: [*Min] / *Sto) -9/Storage -8/Materials (discovered 2 exits: *Fac / Gar) -8/Garrison (discovered 3 exits: *Fac x3) -7/Factory -6/Factory -6/Lower Caves -5/Factory (discovered 3 exits: *Fac x2 / [*Upp]) -5/Upper Caves -5/Upper Caves -4/Factory -4/DSF (discovered 1 exit: [*Res]) History --------- Turn | Location | Event 29 | -11/Junkyard | Discovered new exit (range 15) 59 | -11/Junkyard | Entered Materials 266 | -10/Materials | Discovered new exit (range 15) 315 | -10/Materials | Build established: Mutant 334 | -10/Materials | Discovered new exit (range 14) 558 | -10/Materials | Entered another Materials area 558 | -9/Materials | Evolved 2 slots: Propulsion x2 864 | -9/Materials | Discovered new exit (range 15) 1312 | -9/Materials | Discovered new exit (range 16) 1351 | -9/Materials | Entered Storage 1357 | -9/Storage | Learned location of Armory (-4) 1366 | -9/Storage | Met a pair of Derelict thieves 1410 | -9/Storage | Build established: Scavenger-Mutant 1656 | -9/Storage | Core integrity fell below 50% 2151 | -9/Storage | First assault squad dispatched 2264 | -9/Storage | Lost 4 parts (4n) 2498 | -9/Storage | Build established: Mutant 2646 | -9/Storage | Discovered new exit (range 15) 2675 | -9/Storage | Entered Materials 2675 | -8/Materials | Evolved 2 slots: Utility x2 3073 | -8/Materials | Discovered new exit (range 16) 3194 | -8/Materials | Build established: Scavenger-Mutant 3197 | -8/Materials | Identified exit to Garrison 3197 | -8/Materials | Entered Garrison 3224 | -8/Garrison | Triggered checkpoint 3244 | -8/Garrison | Rescued a captive Derelict 3252 | -8/Garrison | Rescued a captive Derelict 3388 | -8/Garrison | Triggered checkpoint 3472 | -8/Garrison | Triggered checkpoint 3944 | -8/Garrison | Triggered checkpoint 3979 | -8/Garrison | Discovered new exit (range 14) 3980 | -8/Garrison | Triggered checkpoint 3992 | -8/Garrison | Triggered checkpoint 4061 | -8/Garrison | Garrison Relay disabled 4278 | -8/Garrison | Lost 3 parts (1p1n1w) 4330 | -8/Garrison | Triggered checkpoint 4448 | -8/Garrison | Phase Generator disabled 4454 | -8/Garrison | Discovered new exit (range 11) 4518 | -8/Garrison | Triggered checkpoint 4524 | -8/Garrison | Garrison Relay disabled 4669 | -8/Garrison | Garrison Relay disabled 4749 | -8/Garrison | Lost 5 parts (2n1u2w) 4767 | -8/Garrison | Discovered new exit (range 5) 4800 | -8/Garrison | Garrison Relay disabled 4800 | -8/Garrison | Garrison Relay disabled 4810 | -8/Garrison | Garrison Relay disabled 4871 | -8/Garrison | Triggered checkpoint 5018 | -8/Garrison | Entered Factory 5018 | -7/Factory | Evolved 2 slots: Utility x1, Weapon x1 5582 | -7/Factory | Fabricated Exp. Flexi-carbon Leg (x1) 6218 | -7/Factory | First assault squad dispatched 6255 | -7/Factory | Discovered new exit (range 10) 6271 | -7/Factory | Entered another Factory area 6271 | -6/Factory | Evolved 2 slots: Utility x1, Weapon x1 6425 | -6/Factory | Build established: Mutant 6782 | -6/Factory | Garrison activated, responded to threat 6971 | -6/Factory | First assault squad dispatched 7172 | -6/Factory | Lost 9 parts (1p1n4u3w) 7250 | -6/Factory | Core integrity fell below 50% 7424 | -6/Factory | Lost 3 parts (1p1n1w) 7478 | -6/Factory | Lost 3 parts (2u1w) 7599 | -6/Factory | Discovered new exit (range 4) 7605 | -6/Factory | Entered Lower Caves 7611 | -6/Lower Caves | Met a Warlord Commander 7612 | -6/Lower Caves | Learned location of Warlord (-4) 7618 | -6/Lower Caves | Found Encrypted Comm Array 7649 | -6/Lower Caves | Spotted B-75 Beast 7654 | -6/Lower Caves | ME-RLN showed up to help 7656 | -6/Lower Caves | ME-RLN revealed a hidden path 7695 | -6/Lower Caves | Entered Factory 7695 | -5/Factory | Evolved 2 slots: Power x1, Utility x1 7705 | -5/Factory | Discovered new exit (range 7) 7760 | -5/Factory | Joined by Warlord Chimera squad 7880 | -5/Factory | Joined by Warlord Muscle squad 7952 | -5/Factory | Build established: Scavenger-Gunner 7995 | -5/Factory | First assault squad dispatched 8041 | -5/Factory | Joined by Warlord Ranger squad 8506 | -5/Factory | Joined by Warlord Chimera squad 8548 | -5/Factory | Found Prototype Processor 8548 | -5/Factory | Identified Exp. Targeting Computer 9083 | -5/Factory | Joined by Warlord Geek squad 9261 | -5/Factory | Joined by Warlord Ranger squad 9299 | -5/Factory | Discovered new exit (range 15) 9322 | -5/Factory | Discovered new exit (range 15) 9462 | -5/Factory | Entered Upper Caves 9722 | -5/Upper Caves | Lost 6 parts (1p2n2u1w) 9839 | -5/Upper Caves | Lost 4 parts (1p2n1w) 10020 | -5/Upper Caves | Discovered new exit (range 7) 10029 | -5/Upper Caves | Attracted the attention of an 0b10 checkpoint 10031 | -5/Upper Caves | Entered another Upper Caves area 10096 | -5/Upper Caves | Discovered new exit (range 11) 10320 | -5/Upper Caves | Attracted the attention of an 0b10 outpost 10392 | -5/Upper Caves | Lost 7 parts (2p2n2u1w) 10397 | -5/Upper Caves | Entered Factory 10397 | -4/Factory | Evolved 2 slots: Utility x2 10483 | -4/Factory | Identified exit to DSF 10485 | -4/Factory | Entered DSF 10518 | -4/DSF | Additional patrols routed to DSF 10697 | -4/DSF | Core integrity fell below 50% 10764 | -4/DSF | Sterilization system engaged 10772 | -4/DSF | Lost 20 parts (4p6n5u5w) 10783 | -4/DSF | Destroyed 7 combat bots 10784 | -4/DSF | Ambient heat levels rising (+10) 10786 | -4/DSF | Discovered new exit (range 14) 10799 | -4/DSF | Ambient heat levels rising (+10) 10814 | -4/DSF | Ambient heat levels rising (+10) 10829 | -4/DSF | Ambient heat levels rising (+10) 10844 | -4/DSF | Ambient heat levels rising (+10) 10859 | -4/DSF | Ambient heat levels rising (+10) 10874 | -4/DSF | Ambient heat levels rising (+10) 10882 | -4/DSF | Core integrity fell below 20% 10889 | -4/DSF | Core destroyed Last Messages --------------- 10878_ Overheating: Broken Imp. Heavy Siege Treads damaged (-96). 10878_ A-15 Conveyor heat damages Adv. Weight Redist. System, Imp. Ion Engine. 10879_ Power failure, Rnf. Fission Core shutdown. 10879_ A-15 Conveyor heat damages Med. Treads, Lrg. Storage Unit, Adv. Weight Redist. System. 10879_ A-15 Conveyor heat damages core (-10). 10880_ A-15 Conveyor heat damages Med. Treads, Transport Network Coupler, Lrg. Storage Unit, Imp. Ion Engine. 10881_ A-15 Conveyor heat damages Adv. Weight Redist. System. 10882_ Overheating: Core damaged (-184). 10882_ A-15 Conveyor heat damages Imp. Ion Engine, Transport Network Coupler, Med. Treads. 10883_ Overheating: Broken Imp. Heavy Siege Treads damaged (-66). 10885_ A-15 Conveyor heat damages Lrg. Storage Unit, Imp. Ion Engine. 10886_ Overheating: Energy bleed (-31). 10886_ A-15 Conveyor heat damages Med. Treads. 10887_ Overheating: Energy bleed (-36). 10888_ A-15 Conveyor heat damages core (-14). 10889_ Overheating: Core damaged (-161). Map ----- +----------------------------------------------------+ | ??????####"##???????####"####???????##"####??????? | | ??????#"""""######### % !!#########"""""#??????? | | ??????#"""""##[[#]]]# % !!#!!!#!!##"""""#??????? | | ????"##"" % % ""##"#???? | | ????""""" % """""#???? | | ????###"" ## # ### "%###!!!#!!## ""###????? | | ??????### ### # ##" %%###!!!#!!### ###??????? | | ???????## ##########* !!########?# #????????? | | ???????#] #??????#** !!#????????! !#???????? | | ???????#] #??????#** !!#????????! !#???????? | | ???????## ###??????### ###???????## ##???????? | | ???????#] #??????#== !!#???????!! !#???????? | | ???????#] #??????#==[ !!#????????! !#???????? | | ???????#] #??????#==[!%!!#????????! ^!????????? | | ??????### ###??###?### ! "########### ^###??????? | | ??????#!! ## ??#!!!?##!% ###===#!!!## #??????? | | ??????#!! ## #!!!##% ! ##%==#!!!## #??????? | | ??????#== *%[[%= ^ !!#??????? | | ??????#== %[=[*% ^^!!#??????? | | ??????#== *=%%%=%" ^^!!#??????? | | ??????# ## #!!!##A %##!!!#===## [[#??????? | | ??????# ## #!!!### ###!!!#===## #??????? | | ??????######??#####?### ############ ###??????? | | ????????????????????#!! ==#??????#]] ]#???????? | | ????????????????????#!! =#??????#]] ]#???????? | | ????????????????????#!! @==#??????#]] ]#???????? | | ????????????????????### ###??????### ##???????? | | ????????????????????#!! #??????#]] #???????? | | ????????????????????#!! #??????#]] #???????? | | ????????????????????#!! ########## ##???????? | | ????????????????????### ### #]]### ###??????? | | ????????????????????### ### #]]## ""##?????? | | ????????????????????# """""????? | | ????????????????????# <""##"????? | | ????????????????????# #]]]#]]##"""""#??????? | | ????????????????????# #########"""""#??????? | | ????????????????????#########???????##"####??????? | | ?????????????????????????????????????#"#?????????? | | ??????????????????????????????????????""?????????? | | ?????????????????????????????????????????????????? | | ?????????????????????????????????????????????????? | | ?????????????????????????????????????????????????? | | ?????????????????????????????????????????????????? | | ?????????????????????????????????????????????????? | | | | | | | | | | | | | +----------------------------------------------------+ Best States ------------- Heat Dissipation 116 Energy Generation 35 Energy Capacity 540 Matter Stores 300 Matter Capacity 300 Sight Range 16 Terrain Scan Density 10 Base Temperature (-) 200 Armor Coverage 450 Resistance: EM 20 Weapon Cycling 20 Evasion (%) 55 Targeting Accuracy 12 Target Analysis 6 Core Analysis 6 Recoil Reduction 4 Particle Charging 20 Salvage Targeting 3 Item Schematics ----------------- None Robot Schematics ------------------ None Fabricated ------------ Exp. Flexi-carbon Leg | x1 | -7/Factory | Preloaded Alien Tech Used ----------------- None Achievements -------------- None Challenges ------------ None Game ------ Seed MagneticCloakDriver Manual? 0 Play Time 01:30:19 Cumulative 53.7 hours Start 2023.12.24 @ 13:53:45 End 2023.12.24 @ 23:53:10 Sessions 3 Manual Loads 0 Difficulty Rogue Special Mode None Game No. 86 Rogue 70 Adventurer 16 Explorer 0 Win Type - Total 1 Types 1/0/0/0/0/0/0/0/0 Lore% 32 Gallery% 52 Achievement% 45 Wizard Run 0 Options --------- ASCII 0 Keyboard 0 Movement Mouse Keybinds 0 Fullscreen 1 Font 18/SmallcapsGlow Map View 76x50 Tactical HUD 1 Map Filters NONE Filters NONE Steam 1 RUN: 57c0b77b-d8da-4c53-9d95-2f72ed0ed3ca